fUST/lending_fUST_20250718
["ID","MTS","AMOUNT","RATE_DAILY","PERIOD"]
[372958203,1752821451291,-839.420858,0.00025477,7]
[372958204,1752821451301,-839.420854,0.00025477,7]
[372958205,1752821451311,-151.0,0.00025477,7]
[372958206,1752821451321,-207.95631384,0.00025477,7]
[372958207,1752821451331,-151.0,0.00025477,7]
[372958208,1752821451340,-151.0,0.00025477,7]
[372958209,1752821451350,-151.0,0.00025477,7]
[372958210,1752821451359,-151.0,0.00025477,7]
[372958211,1752821451369,-151.0,0.00025477,7]
[372958212,1752821451379,-151.0,0.00025477,7]
[372958213,1752821451389,-151.0,0.00025477,7]
[372958214,1752821451399,-151.0,0.00025477,7]
[372958215,1752821451409,-297.457242,0.00025477,7]
[372958216,1752821451419,-219.087605,0.00025477,7]
[372958217,1752821451428,-219.087605,0.00025477,7]
[372958218,1752821451438,-219.087605,0.00025477,7]
[372958219,1752821451449,-219.087605,0.00025477,7]
[372958220,1752821451459,-219.087605,0.00025477,7]
[372958221,1752821451469,-219.087605,0.00025477,7]
[372958222,1752821451481,-219.087605,0.00025477,7]
[372958223,1752821451490,-219.087605,0.00025477,7]
[372958224,1752821451500,-219.087605,0.00025477,7]
[372958225,1752821451510,-219.087605,0.00025477,7]
[372958226,1752821451519,-219.087605,0.00025477,7]
[372958227,1752821451534,-219.087605,0.00025477,7]
[372958228,1752821451544,-219.087605,0.00025477,7]
[372958229,1752821451555,-151.0,0.00025477,7]
[372958230,1752821451564,-219.087605,0.00025477,7]
[372958231,1752821451576,-151.0,0.00025477,7]
[372958232,1752821451585,-219.087605,0.00025477,7]
[372958233,1752821451595,-219.087605,0.00025477,7]
[372958234,1752821451604,-219.087605,0.00025477,7]
[372958235,1752821451614,-219.087605,0.00025477,7]
[372958236,1752821451624,-219.087605,0.00025477,7]
[372958237,1752821451634,-219.087606,0.00025477,7]
[372958238,1752821451643,-151.792969,0.00025477,7]
[372958239,1752821451654,-151.0,0.00025477,7]
[372958240,1752821451664,-151.0,0.00025477,7]
[372958241,1752821451675,-151.0,0.00025477,7]
[372958242,1752821451685,-151.0,0.00025477,7]
[372958243,1752821451696,-151.0,0.00025477,7]
[372958244,1752821451705,-151.0,0.00025477,7]
[372958245,1752821451715,-151.0,0.00025477,7]
[372958246,1752821451727,-151.0,0.00025477,7]
[372958247,1752821451737,-436.207965,0.00025477,7]
[372958248,1752821451746,-436.207965,0.00025477,7]
[372958249,1752821451756,-436.207965,0.00025477,7]
[372958250,1752821451766,-436.207965,0.00025477,7]
[372958251,1752821451776,-436.207965,0.00025477,7]
[372958252,1752821451786,-436.207965,0.00025477,7]
[372958253,1752821451796,-436.207965,0.00025477,7]
[372958254,1752821451806,-436.207965,0.00025477,7]
[372958255,1752821451815,-436.207965,0.00025477,7]
[372958256,1752821451826,-436.207965,0.00025477,7]
[372958257,1752821451840,-436.207965,0.00025477,7]
[372958258,1752821451856,-436.207965,0.00025477,7]
[372958259,1752821451872,-436.207965,0.00025477,7]
[372958260,1752821451884,-436.207965,0.00025477,7]
[372958261,1752821451894,-436.207965,0.00025477,7]
[372958262,1752821451906,-436.207965,0.00025477,7]
[372958263,1752821451917,-436.207965,0.00025477,7]
[372958264,1752821451927,-436.207965,0.00025477,7]
[372958265,1752821451939,-436.207965,0.00025477,7]
[372958266,1752821451949,-436.207965,0.00025477,7]
[372958267,1752821451960,-151.0,0.00025477,7]
[372958268,1752821451970,-151.36922,0.00025477,7]
[372958269,1752821451982,-500.0,0.0002548,2]
[372958270,1752821451992,-4667.65200093,0.0002548,2]
[372958271,1752821452003,-151.0,0.0002548,7]
[372958272,1752821452013,-151.0,0.0002548,7]
[372958273,1752821452023,-151.0,0.0002548,7]
[372958274,1752821452032,-151.0,0.0002548,7]
[372958275,1752821452042,-151.0,0.0002548,7]
[372958276,1752821452052,-267.7681,0.0002548,7]
[372958277,1752821452062,-500.0,0.0002548,2]
[372958278,1752821452072,-13047354.78288836,0.0002548,20]
[372958279,1752821452081,-166749.55610185,0.0002548,20]
[372958280,1752821452091,-162.70129532,0.0002548,2]
[372958281,1752821452100,-1234765.95239743,0.0002548,20]
[372958282,1752821452126,-45130.47286572,0.0002548,20]
[372958283,1752821452228,-460.0,0.0001671,2]
[372958284,1752821452238,-460.0,0.00016711,2]
[372958285,1752821452248,-460.0,0.00021999,2]
[372958286,1752821452258,-460.0,0.00022273,2]
[372958287,1752821452267,-216.29,0.00023558,2]
[372958288,1752821452278,-4219.86031119,0.0002548,20]
[372958289,1752821452289,-2252.23991775,0.0002548,20]
[372958290,1752821452301,-125572.94211475,0.0002548,20]
[372958291,1752821487150,150.0,0.00015765,2]
[372958292,1752821653715,292.948228,0.00013699,2]
[372958295,1752822061006,23379.1014741,0.0001571,2]
[372958296,1752822079462,5000.0,0.0001611,2]
[372958297,1752822097702,4357.45620665,0.0001611,2]
[372958298,1752822353584,-160.0,0.00016426,2]
[372958299,1752822353607,-186.01374954,0.00016607,2]
[372958300,1752822353628,-186.01374953,0.00016608,2]
[372958301,1752822353649,-186.01374953,0.00016608,2]
[372958302,1752822353671,-300.0,0.00016706,2]
[372958303,1752822353692,-300.0,0.00016706,2]
[372958304,1752822353713,-300.0,0.00016706,2]
[372958305,1752822353736,-215.43938464,0.00016707,2]
[372958306,1752822353760,-300.0,0.00016707,2]
[372958307,1752822353783,-1200.0,0.00016707,2]
[372958308,1752822353806,-300.0,0.00016707,2]
[372958309,1752822353829,-460.0,0.00016708,2]
[372958310,1752822353851,-337.7942338,0.00016708,2]
[372958311,1752822353872,-460.0,0.00016708,2]
[372958312,1752822353894,-460.0,0.00016708,2]
[372958313,1752822353917,-460.0,0.00016708,2]
[372958314,1752822353939,-410.04954294,0.00016708,2]
[372958315,1752822353960,-460.0,0.00016708,2]
[372958316,1752822353981,-460.0,0.00016708,2]
[372958317,1752822354002,-438.11286961,0.00016708,2]
[372958318,1752822395114,150.0,0.00015543,2]
[372958319,1752822461538,150.0,0.00015543,2]
[372958362,1752822632622,-316.67051053,0.00016608,2]
[372958364,1752822632632,-155.31936476,0.00016707,2]
[372958366,1752822632644,-795.155,0.00016707,2]
[372958368,1752822632656,-124.52563524,0.00016707,2]
[372958370,1752822632665,-460.0,0.00016707,2]
[372958372,1752822632675,-245.85112974,0.00016707,2]
[372958374,1752822632684,-300.0,0.00016707,2]
[372958376,1752822632694,-300.0,0.00016707,2]
[372958378,1752822632703,-1200.0,0.00016707,2]
[372958380,1752822632713,-300.0,0.00016707,2]
[372958382,1752822632722,-460.0,0.00016707,2]
[372958384,1752822632732,-460.0,0.00016707,2]
[372958386,1752822632742,-21.82094345,0.00016708,2]
[372958388,1752822632752,-460.0,0.00016708,2]
[372958390,1752822632761,-460.0,0.00016708,2]
[372958392,1752822632771,-460.0,0.00016708,2]
[372958395,1752822632780,-461.46166711,0.00016708,2]
[372958398,1752822632789,-460.0,0.00016708,2]
[372958401,1752822632799,-460.0,0.00016708,2]
[372958404,1752822632808,-460.0,0.00016708,2]
[372958407,1752822632817,-460.0,0.00016708,2]
[372958409,1752822632826,-460.0,0.00016708,2]
[372958411,1752822632838,-460.0,0.00016708,2]
[372958414,1752822632848,-460.0,0.00016708,2]
[372958417,1752822632857,-460.0,0.00016708,2]
[372958420,1752822632866,-460.0,0.00016708,2]
[372958423,1752822632876,-460.0,0.00016708,2]
[372958424,1752822632887,-456.23242132,0.00016708,2]
[372958426,1752822632899,-409.80384149,0.00016708,2]
[372958429,1752822632908,-462.86513776,0.00016708,2]
[372958430,1752822632917,-460.0,0.00016708,2]
[372958432,1752822632926,-460.0,0.00016708,2]
[372958434,1752822632936,-460.0,0.00016708,2]
[372958436,1752822632945,-460.0,0.00016708,2]
[372958439,1752822632955,-460.0,0.00016708,2]
[372958440,1752822632964,-460.0,0.00016708,2]
[372958443,1752822632974,-460.0,0.00016708,2]
[372958445,1752822632983,-460.0,0.00016708,2]
[372958447,1752822632993,-460.0,0.00016708,2]
[372958449,1752822633003,-460.0,0.00016708,2]
[372958451,1752822633012,-460.0,0.00016708,2]
[372958452,1752822633022,-460.0,0.00016708,2]
[372958455,1752822633031,-460.0,0.00016708,2]
[372958457,1752822633041,-466.73409255,0.00016708,2]
[372958459,1752822633050,-460.0,0.00016708,2]
[372958461,1752822633059,-460.0,0.00016708,2]
[372958463,1752822633070,-978.12,0.00016708,2]
[372958465,1752822633080,-460.0,0.00016708,2]
[372958467,1752822633090,-460.0,0.00016708,2]
[372958468,1752822633099,-460.0,0.00016708,2]
[372958471,1752822633109,-460.0,0.00016708,2]
[372958473,1752822633120,-610.95,0.00016708,2]
[372958475,1752822633130,-460.0,0.00016708,2]
[372958477,1752822633139,-460.0,0.00016708,2]
[372958479,1752822633150,-460.0,0.00016708,2]
[372958481,1752822633160,-460.0,0.00016708,2]
[372958483,1752822633169,-572.02,0.00016708,2]
[372958485,1752822633179,-460.0,0.00016708,2]
[372958487,1752822633189,-460.0,0.00016708,2]
[372958489,1752822633199,-460.0,0.00016708,2]
[372958491,1752822633209,-460.0,0.00016708,2]
[372958493,1752822633221,-460.0,0.00016708,2]
[372958495,1752822633230,-460.0,0.00016708,2]
[372958497,1752822633239,-460.0,0.00016708,2]
[372958499,1752822633250,-490.92434587,0.00016708,2]
[372958501,1752822633260,-460.0,0.00016708,2]
[372958503,1752822633270,-462.97887029,0.00016708,2]
[372958505,1752822633280,-344.73,0.00016708,2]
[372958507,1752822633290,-460.0,0.00016708,2]
[372958509,1752822633300,-460.0,0.00016708,2]
[372958512,1752822633310,-460.0,0.00016708,2]
[372958513,1752822633320,-539.76874231,0.00016708,2]
[372958515,1752822633331,-460.0,0.00016708,2]
[372958518,1752822633340,-549.59061715,0.00016708,2]
[372958520,1752822633350,-728.1,0.00016708,2]
[372958521,1752822633359,-460.0,0.00016708,2]
[372958524,1752822633369,-460.0,0.00016708,2]
[372958526,1752822633378,-460.0,0.00016708,2]
[372958528,1752822633387,-460.0,0.00016709,2]
[372958530,1752822633399,-460.0,0.00016709,2]
[372958532,1752822633408,-460.0,0.00016709,2]
[372958534,1752822633418,-461.27915219,0.00016709,2]
[372958536,1752822633428,-460.0,0.00016709,2]
[372958538,1752822633437,-460.0,0.00016709,2]
[372958540,1752822633447,-460.0,0.00016709,2]
[372958542,1752822633456,-461.28036586,0.00016709,2]
[372958544,1752822633467,-462.39473424,0.00016709,2]
[372958546,1752822633476,-461.04734821,0.00016709,2]
[372958548,1752822633487,-460.0,0.00016709,2]
[372958550,1752822633496,-460.66124518,0.00016709,2]
[372958552,1752822633506,-460.0,0.00016709,2]
[372958554,1752822633516,-460.0,0.00016709,2]
[372958556,1752822633526,-461.08927528,0.00016709,2]
[372958558,1752822633536,-460.0,0.00016709,2]
[372958560,1752822633545,-460.0,0.00016709,2]
[372958562,1752822633556,-460.0,0.00016709,2]
[372958564,1752822633566,-460.0,0.00016709,2]
[372958566,1752822633575,-460.0,0.00016709,2]
[372958568,1752822633588,-460.0,0.00016709,2]
[372958570,1752822633598,-460.0,0.00016709,2]
[372958572,1752822633608,-460.0,0.00016709,2]
[372958574,1752822633619,-460.0,0.00016709,2]
[372958576,1752822633629,-460.0,0.00016709,2]
[372958593,1752822633756,-460.0,0.00016709,2]
[372958596,1752822633805,-460.0,0.00016709,2]
[372958598,1752822633815,-460.0,0.00016709,2]
[372958600,1752822633826,-245.960666,0.00016709,2]
[372958602,1752822633843,-460.0,0.00016709,2]
[372958604,1752822633853,-460.0,0.00016709,2]
[372958606,1752822633864,-460.0,0.00016709,2]
[372958607,1752822633874,-460.0,0.00016709,2]
[372958608,1752822633884,-460.0,0.00016709,2]
[372958609,1752822633894,-460.0,0.00016709,2]
[372958610,1752822633904,-460.0,0.00016709,2]
[372958611,1752822633914,-460.0,0.00016709,2]
[372958612,1752822633924,-460.0,0.00016709,2]
[372958613,1752822633934,-500.0,0.00016709,2]
[372958614,1752822633944,-476.57,0.00016709,2]
[372958615,1752822633954,-460.0,0.00016709,2]
[372958616,1752822633964,-460.0,0.00016709,2]
[372958617,1752822633974,-460.0,0.00016709,2]
[372958618,1752822633984,-460.0,0.00016709,2]
[372958619,1752822633994,-460.0,0.00016709,2]
[372958620,1752822634004,-460.0,0.00016709,2]
[372958621,1752822634014,-460.0,0.00016709,2]
[372958622,1752822634023,-460.0,0.00016709,2]
[372958623,1752822634033,-460.0,0.00016709,2]
[372958624,1752822634042,-379.43976878,0.00016709,2]
[372958625,1752822634055,-80.56023122,0.00016709,2]
[372958626,1752822634065,-441.76366054,0.00016709,2]
[372958627,1752822634076,-18.23633946,0.00016709,2]
[372958628,1752822634090,-1817.55,0.00016709,2]
[372958629,1752822634101,-151.33130806,0.00016709,2]
[372958647,1752822639187,-790.69869194,0.00016709,2]
[372958648,1752822639198,-460.0,0.00016709,2]
[372958649,1752822639211,-460.0,0.00016709,2]
[372958650,1752822639220,-460.0,0.00016709,2]
[372958651,1752822639230,-460.0,0.00016709,2]
[372958652,1752822639239,-460.0,0.00016709,2]
[372958653,1752822639249,-460.0,0.0001671,2]
[372958654,1752822639259,-460.0,0.0001671,2]
[372958655,1752822639268,-503.89607381,0.0001671,2]
[372958656,1752822639277,-460.0,0.0001671,2]
[372958657,1752822639287,-460.0,0.0001671,2]
[372958658,1752822639297,-125.48404139,0.0001671,2]
[372958659,1752822639391,-342.84955914,0.0001671,2]
[372958660,1752822639400,-460.0,0.0001671,2]
[372958661,1752822639410,-460.0,0.0001671,2]
[372958662,1752822639420,-460.0,0.0001671,2]
[372958663,1752822639429,-460.0,0.0001671,2]
[372958664,1752822639439,-460.0,0.0001671,2]
[372958665,1752822639448,-460.0,0.0001671,2]
[372958666,1752822639458,-460.0,0.0001671,2]
[372958667,1752822639468,-460.0,0.0001671,2]
[372958668,1752822639477,-174.98506148,0.0001671,2]
[372958669,1752822639487,-519.62454663,0.0001671,2]
[372958670,1752822639497,-460.0,0.0001671,2]
[372958671,1752822639506,-460.0,0.0001671,2]
[372958672,1752822639516,-463.82155669,0.0001671,2]
[372958673,1752822639526,-460.0,0.0001671,2]
[372958674,1752822639535,-460.0,0.0001671,2]
[372958675,1752822639544,-460.0,0.0001671,2]
[372958676,1752822639554,-460.0,0.0001671,2]
[372958677,1752822639563,-460.0,0.0001671,2]
[372958678,1752822639574,-460.0,0.0001671,2]
[372958679,1752822639585,-369.52906054,0.0001671,2]
[372958680,1752822639596,-460.0,0.0001671,2]
[372958681,1752822639605,-460.0,0.0001671,2]
[372958682,1752822639615,-460.0,0.0001671,2]
[372958683,1752822639624,-419.93990635,0.0001671,2]
[372958684,1752822639635,-460.0,0.0001671,2]
[372958685,1752822639644,-460.0,0.0001671,2]
[372958686,1752822639654,-460.0,0.0001671,2]
[372958687,1752822639663,-460.0,0.0001671,2]
[372958688,1752822639673,-460.0,0.0001671,2]
[372958689,1752822639683,-460.0,0.0001671,2]
[372958690,1752822639692,-462.83145333,0.0001671,2]
[372958691,1752822639702,-460.0,0.0001671,2]
[372958692,1752822639711,-460.0,0.0001671,2]
[372958693,1752822639721,-460.0,0.0001671,2]
[372958694,1752822639730,-156.88143484,0.0001671,2]
[372958695,1752822639740,-460.0,0.0001671,2]
[372958696,1752822639751,-460.0,0.0001671,2]
[372958697,1752822639762,-460.0,0.0001671,2]
[372958698,1752822639772,-500.0,0.0001671,2]
[372958699,1752822639781,-460.0,0.0001671,2]
[372958700,1752822639790,-460.0,0.0001671,2]
[372958701,1752822639800,-460.0,0.0001671,2]
[372958702,1752822639810,-460.0,0.0001671,2]
[372958703,1752822639819,-460.0,0.0001671,2]
[372958704,1752822639830,-460.0,0.0001671,2]
[372958705,1752822639845,-460.0,0.0001671,2]
[372958706,1752822639858,-277.97047678,0.0001671,2]
[372958707,1752822639869,-500.0,0.0001671,2]
[372958708,1752822639878,-460.0,0.0001671,2]
[372958709,1752822639888,-460.51561485,0.0001671,2]
[372958710,1752822639898,-460.0,0.0001671,2]
[372958711,1752822639909,-460.0,0.0001671,2]
[372958712,1752822639918,-460.0,0.0001671,2]
[372958713,1752822639929,-460.0,0.0001671,2]
[372958714,1752822639939,-460.0,0.0001671,2]
[372958715,1752822639949,-460.0,0.0001671,2]
[372958716,1752822639959,-460.0,0.0001671,2]
[372958717,1752822639968,-460.0,0.0001671,2]
[372958718,1752822639977,-312.74545577,0.00016711,2]
[372958719,1752822639987,-461.17971347,0.00016711,2]
[372958720,1752822639996,-460.0,0.00016711,2]
[372958721,1752822640006,-462.73498137,0.00016711,2]
[372958722,1752822640015,-460.0,0.00016711,2]
[372958723,1752822640025,-460.95303561,0.00016711,2]
[372958724,1752822640034,-460.0,0.00016711,2]
[372958725,1752822640044,-460.0,0.00016711,2]
[372958726,1752822640054,-460.0,0.00016711,2]
[372958729,1752822640063,-460.0,0.00016711,2]
[372958732,1752822640072,-460.0,0.00016711,2]
[372958734,1752822640081,-313.07049304,0.00016711,2]
[372958736,1752822640094,-460.0,0.00016711,2]
[372958737,1752822640103,-460.0,0.00016711,2]
[372958738,1752822640114,-460.0,0.00016711,2]
[372958739,1752822640123,-460.8809083,0.00016711,2]
[372958740,1752822640133,-3445.93351012,0.00016882,2]
[372958741,1752822640143,-500.0,0.00016981,2]
[372958742,1752822640152,-460.0,0.00016982,2]
[372958743,1752822640162,-591.19469254,0.00016982,2]
[372958744,1752822640171,-460.0,0.00016982,2]
[372958745,1752822640180,-460.0,0.00016982,2]
[372958746,1752822640190,-978.12,0.00016982,2]
[372958747,1752822640199,-444.54,0.00016982,2]
[372958748,1752822640209,-610.95,0.00016982,2]
[372958749,1752822640223,-460.0,0.00016982,2]
[372958750,1752822640232,-460.0,0.00016982,2]
[372958751,1752822640242,-243.98,0.00016982,2]
[372958752,1752822640254,-460.0,0.00016982,2]
[372958753,1752822640267,-460.0,0.00016982,2]
[372958754,1752822640279,-460.0,0.00016982,2]
[372958755,1752822640292,-460.0,0.00016982,2]
[372958756,1752822640303,-236.2,0.00016982,2]
[372958757,1752822640315,-728.1,0.00016982,2]
[372958758,1752822640326,-460.0,0.00016982,2]
[372958759,1752822640341,-460.0,0.00016982,2]
[372958760,1752822640351,-460.0,0.00016982,2]
[372958761,1752822640361,-460.0,0.00016983,2]
[372958762,1752822640371,-182.03351193,0.00016983,2]
[372958764,1752822640382,-460.0,0.00016983,2]
[372958766,1752822640393,-460.0,0.00016983,2]
[372958768,1752822640403,-460.0,0.00016983,2]
[372958770,1752822640414,-460.0,0.00016983,2]
[372958772,1752822640427,-460.0,0.00016983,2]
[372958773,1752822640438,-460.0,0.00016983,2]
[372958774,1752822640448,-460.0,0.00016983,2]
[372958775,1752822640462,-460.0,0.00016983,2]
[372958776,1752822640473,-460.0,0.00016983,2]
[372958777,1752822640485,-460.0,0.00016983,2]
[372958778,1752822640498,-460.26,0.00016983,2]
[372958779,1752822640509,-500.0,0.00016983,2]
[372958780,1752822640519,-476.57,0.00016983,2]
[372958781,1752822640530,-460.0,0.00016983,2]
[372958782,1752822640540,-460.0,0.00016983,2]
[372958784,1752822640552,-460.0,0.00016983,2]
[372958785,1752822640563,-460.0,0.00016983,2]
[372958788,1752822640574,-460.0,0.00016983,2]
[372958790,1752822640586,-460.0,0.00016983,2]
[372958792,1752822640597,-1817.55,0.00016983,2]
[372958794,1752822640607,-942.03,0.00016983,2]
[372958796,1752822640618,-460.0,0.00016983,2]
[372958797,1752822640629,-460.0,0.00016983,2]
[372958798,1752822640640,-460.0,0.00016983,2]
[372958799,1752822640650,-460.0,0.00016984,2]
[372958800,1752822640662,-460.0,0.00016984,2]
[372958801,1752822640672,-460.0,0.00016984,2]
[372958802,1752822640683,-460.0,0.00016984,2]
[372958803,1752822640694,-460.0,0.00016984,2]
[372958804,1752822640705,-495.9390788,0.00016984,2]
[372958805,1752822640717,-467.06496647,0.00016984,2]
[372958806,1752822640729,-500.0,0.00016984,2]
[372958807,1752822640740,-460.0,0.00016984,2]
[372958808,1752822640751,-479.9253351,0.00016984,2]
[372958809,1752822640761,-460.0,0.00016984,2]
[372958810,1752822640772,-490.26855167,0.00016985,2]
[372958811,1752822640783,-460.0,0.00016985,2]
[372958812,1752822640793,-507.42,0.00017256,2]
[372958813,1752822640803,-978.12,0.00017256,2]
[372958814,1752822640812,-610.95,0.00017256,2]
[372958815,1752822640822,-387.11106331,0.00017256,2]
[372958816,1752822640832,-460.0,0.00017256,2]
[372958817,1752822640845,-460.0,0.00017256,2]
[372958818,1752822640856,-460.0,0.00017256,2]
[372958819,1752822640866,-460.0,0.00017256,2]
[372958820,1752822640876,-460.0,0.00017256,2]
[372958821,1752822640887,-728.1,0.00017256,2]
[372958822,1752822640897,-460.0,0.00017256,2]
[372958823,1752822640909,-460.0,0.00017257,2]
[372958824,1752822640919,-157.58,0.00017257,2]
[372958825,1752822640930,-460.0,0.00017257,2]
[372958826,1752822640941,-460.0,0.00017257,2]
[372958827,1752822640952,-460.0,0.00017257,2]
[372958828,1752822640962,-500.0,0.00017257,2]
[372958829,1752822640973,-476.57,0.00017257,2]
[372958830,1752822640985,-460.0,0.00017257,2]
[372958831,1752822640996,-460.0,0.00017257,2]
[372958832,1752822641007,-460.0,0.00017257,2]
[372958833,1752822641018,-460.0,0.00017257,2]
[372958834,1752822641029,-460.0,0.00017257,2]
[372958835,1752822641039,-1817.55,0.00017257,2]
[372958836,1752822641051,-942.03,0.00017257,2]
[372958837,1752822641064,-460.0,0.00017257,2]
[372958838,1752822641078,-460.0,0.00017257,2]
[372958839,1752822641090,-460.0,0.00017258,2]
[372958840,1752822641100,-460.0,0.00017258,2]
[372958841,1752822641110,-460.0,0.00017258,2]
[372958842,1752822641119,-875.78,0.00017521,3]
[372958843,1752822641130,-500.0,0.00017529,2]
[372958844,1752822641140,-978.12,0.0001753,2]
[372958845,1752822641151,-610.95,0.0001753,2]
[372958846,1752822641162,-460.0,0.0001753,2]
[372958847,1752822641173,-460.0,0.0001753,2]
[372958848,1752822641184,-460.0,0.0001753,2]
[372958849,1752822641194,-460.0,0.0001753,2]
[372958850,1752822641211,-460.0,0.0001753,2]
[372958851,1752822641223,-728.1,0.0001753,2]
[372958852,1752822641235,-460.0,0.0001753,2]
[372958853,1752822641247,-460.0,0.00017531,2]
[372958854,1752822641258,-460.0,0.00017531,2]
[372958855,1752822641267,-460.0,0.00017531,2]
[372958856,1752822641278,-476.57,0.00017531,2]
[372958857,1752822641289,-460.0,0.00017531,2]
[372958858,1752822641301,-460.0,0.00017531,2]
[372958859,1752822641321,-362.18278613,0.00017531,2]
[372958860,1752822641335,-543.73,0.00017531,2]
[372958861,1752822641351,-460.0,0.00017531,2]
[372958862,1752822641365,-1817.55,0.00017531,2]
[372958863,1752822641379,-942.03,0.00017531,2]
[372958864,1752822641395,-460.0,0.00017531,2]
[372958865,1752822641406,-460.0,0.00017531,2]
[372958866,1752822641416,-460.0,0.00017532,2]
[372958867,1752822641427,-500.0,0.00017532,2]
[372958868,1752822641438,-978.12,0.00017804,2]
[372958869,1752822641448,-610.95,0.00017804,2]
[372958870,1752822641458,-420.56,0.00017804,2]
[372958871,1752822641468,-460.0,0.00017804,2]
[372958872,1752822641479,-460.0,0.00017804,2]
[372958873,1752822641490,-460.0,0.00017804,2]
[372958874,1752822641501,-460.0,0.00017804,2]
[372958875,1752822641512,-728.1,0.00017804,2]
[372958876,1752822641523,-460.0,0.00017804,2]
[372958877,1752822641534,-460.0,0.00017805,2]
[372958878,1752822641546,-460.0,0.00017805,2]
[372958879,1752822641557,-460.0,0.00017805,2]
[372958880,1752822641567,-476.57,0.00017805,2]
[372958881,1752822641578,-211.83,0.00017805,2]
[372958882,1752822641591,-460.0,0.00017805,2]
[372958883,1752822641602,-460.0,0.00017805,2]
[372958884,1752822641613,-1817.55,0.00017805,2]
[372958885,1752822641624,-942.03,0.00017805,2]
[372958886,1752822641635,-460.0,0.00017805,2]
[372958887,1752822641646,-460.0,0.00017805,2]
[372958888,1752822641658,-460.0,0.00017806,2]
[372958889,1752822641671,-316.67051047,0.0001786,2]
[372958890,1752822641687,-696.38814407,0.000179,2]
[372958891,1752822641699,-978.12,0.00018078,2]
[372958892,1752822641710,-610.95,0.00018078,2]
[372958893,1752822641722,-460.0,0.00018078,2]
[372958894,1752822641733,-460.0,0.00018078,2]
[372958895,1752822641745,-460.0,0.00018078,2]
[372958896,1752822641755,-460.0,0.00018078,2]
[372958897,1752822641766,-728.1,0.00018078,2]
[372958898,1752822641778,-460.0,0.00018078,2]
[372958899,1752822641788,-460.0,0.00018079,2]
[372958900,1752822641800,-206.45,0.00018079,2]
[372958901,1752822641811,-460.0,0.00018079,2]
[372958902,1752822641822,-476.57,0.00018079,2]
[372958903,1752822641833,-460.0,0.00018079,2]
[372958904,1752822641846,-460.0,0.00018079,2]
[372958905,1752822641857,-1817.55,0.00018079,2]
[372958906,1752822641868,-942.03,0.00018079,2]
[372958907,1752822641879,-460.0,0.00018079,2]
[372958908,1752822641889,-460.0,0.00018079,2]
[372958909,1752822641900,-460.0,0.0001808,2]
[372958910,1752822641911,-696.38814388,0.00018176,2]
[372958911,1752822641921,-978.12,0.00018352,2]
[372958912,1752822641932,-610.95,0.00018352,2]
[372958913,1752822641943,-460.0,0.00018352,2]
[372958914,1752822641954,-460.0,0.00018352,2]
[372958915,1752822641965,-460.0,0.00018352,2]
[372958916,1752822641975,-460.0,0.00018352,2]